[Event "Early-Titled-Tuesday-Blitz-February-13-2024"]
[Site "Chess.com"]
[Date "2024.02.13"]
[Round "1"]
[White "Yan_Dyomin2010"]
[Black "martinmena"]
[Result "1-0"]
[WhiteElo "2576"]
[BlackElo "2125"]
[TimeControl "180+1"]
[EndTime "8:08:40 PST"]
[Termination "Yan_Dyomin2010 won on time"]

1. e4 {[%clk 0:02:58.8]} 1... c6 {[%clk 0:02:59.5]} 2. Nc3 {[%clk 0:02:54.5]}
2... d5 {[%clk 0:03:00.4]} 3. Nf3 {[%clk 0:02:54.8]} 3... Bg4 {[%clk 0:03:00.3]}
4. h3 {[%clk 0:02:54.1]} 4... Bxf3 {[%clk 0:02:59.2]} 5. gxf3 {[%clk 0:02:55]}
5... e6 {[%clk 0:02:53.7]} 6. d4 {[%clk 0:02:54.9]} 6... Bb4 {[%clk 0:02:53.8]}
7. Qd3 {[%clk 0:02:50.8]} 7... Nf6 {[%clk 0:02:45.8]} 8. a3 {[%clk 0:02:43.4]}
8... Bxc3+ {[%clk 0:02:45.4]} 9. bxc3 {[%clk 0:02:43.9]} 9... Qc7 {[%clk
0:02:27.6]} 10. h4 {[%clk 0:02:40.7]} 10... c5 {[%clk 0:02:22.8]} 11. Bg5 {[%clk
0:02:29.4]} 11... Nbd7 {[%clk 0:02:21]} 12. Bh3 {[%clk 0:01:57.9]} 12... Rc8
{[%clk 0:02:07.3]} 13. O-O {[%clk 0:01:46.7]} 13... O-O {[%clk 0:01:59.4]} 14.
Rac1 {[%clk 0:01:29.9]} 14... h6 {[%clk 0:01:29.8]} 15. Be3 {[%clk 0:01:27.8]}
15... cxd4 {[%clk 0:00:58.8]} 16. cxd4 {[%clk 0:01:26.1]} 16... Qc3 {[%clk
0:00:52.4]} 17. Bd2 {[%clk 0:01:19.6]} 17... Qc4 {[%clk 0:00:30.1]} 18. Rfe1
{[%clk 0:01:09.2]} 18... Nb6 {[%clk 0:00:22.4]} 19. Bf1 {[%clk 0:01:06.9]} 19...
Qa4 {[%clk 0:00:16.4]} 20. Bb4 {[%clk 0:01:04.7]} 20... Rfd8 {[%clk 0:00:14.4]}
21. e5 {[%clk 0:01:01.9]} 21... Nfd7 {[%clk 0:00:12.4]} 22. Qb3 {[%clk
0:00:59.1]} 22... Qxb3 {[%clk 0:00:11.6]} 23. cxb3 {[%clk 0:00:59.4]} 23... Nb8
{[%clk 0:00:09.7]} 24. Bc5 {[%clk 0:00:52.8]} 24... Nc6 {[%clk 0:00:05.9]} 25.
Bb5 {[%clk 0:00:53.2]} 25... Rd7 {[%clk 0:00:02.3]} 26. b4 {[%clk 0:00:52.6]}
26... Rdc7 {[%clk 0:00:02.6]} 27. Kf1 {[%clk 0:00:47.4]} 27... Rd7 {[%clk
0:00:02.5]} 28. a4 {[%clk 0:00:46.4]} 28... Rdd8 {[%clk 0:00:03]} 29. a5 {[%clk
0:00:46.2]} 29... Nd7 {[%clk 0:00:03.7]} 30. Bxc6 {[%clk 0:00:40.3]} 30... Rxc6
{[%clk 0:00:04.6]} 31. b5 {[%clk 0:00:39.6]} 31... Rcc8 {[%clk 0:00:03]} 32.
Bxa7 {[%clk 0:00:39.1]} 32... Ra8 {[%clk 0:00:03.3]} 33. b6 {[%clk 0:00:39.2]}
33... Nb8 {[%clk 0:00:02]} 34. Bxb8 {[%clk 0:00:36.8]} 34... Rdxb8 {[%clk
0:00:01.8]} 35. Rc5 {[%clk 0:00:36.4]} 35... Ra6 {[%clk 0:00:01.4]} 36. Rb1
{[%clk 0:00:36.5]} 36... Rba8 {[%clk 0:00:01.7]} 37. Rbb5 {[%clk 0:00:36.4]}
37... Kf8 {[%clk 0:00:02.2]} 38. f4 {[%clk 0:00:35.2]} 38... g6 {[%clk
0:00:02.4]} 39. Kg2 {[%clk 0:00:34.9]} 39... Kg7 {[%clk 0:00:03]} 40. h5 {[%clk
0:00:34.5]} 40... gxh5 {[%clk 0:00:02.5]} 41. f5 {[%clk 0:00:33.9]} 41... h4
{[%clk 0:00:01.9]} 42. Kh3 {[%clk 0:00:33.3]} 42... exf5 {[%clk 0:00:01.7]} 43.
Rxd5 {[%clk 0:00:33.1]} 43... Kg6 {[%clk 0:00:02.1]} 44. Kxh4 {[%clk 0:00:32.4]}
44... f4 {[%clk 0:00:02.2]} 45. Kg4 {[%clk 0:00:30.9]} 45... h5+ {[%clk
0:00:02.8]} 46. Kxf4 {[%clk 0:00:31.2]} 46... h4 {[%clk 0:00:03.5]} 47. Rd6+
{[%clk 0:00:31]} 47... Kg7 {[%clk 0:00:03.3]} 48. Rd7 {[%clk 0:00:24.6]} 48...
Rh8 {[%clk 0:00:03.8]} 49. Rxb7 {[%clk 0:00:18]} 49... h3 {[%clk 0:00:04.1]} 50.
Ra7 {[%clk 0:00:18.3]} 50... h2 {[%clk 0:00:04.3]} 51. Rb1 {[%clk 0:00:18.8]}
51... Rxa7 {[%clk 0:00:04.3]} 52. bxa7 {[%clk 0:00:19.2]} 52... Ra8 {[%clk
0:00:04.2]} 53. Rh1 {[%clk 0:00:18.4]} 53... Rxa7 {[%clk 0:00:03.7]} 54. Rxh2
{[%clk 0:00:19.3]} 54... Rxa5 {[%clk 0:00:04]} 55. Ke4 {[%clk 0:00:20]} 55...
Ra4 {[%clk 0:00:03.9]} 56. f4 {[%clk 0:00:20.4]} 56... Kf8 {[%clk 0:00:04.3]}
57. f5 {[%clk 0:00:20.8]} 57... Ke7 {[%clk 0:00:04.9]} 58. f6+ {[%clk
0:00:21.5]} 58... Ke6 {[%clk 0:00:04.7]} 59. Rb2 {[%clk 0:00:22.1]} 59... Ra6
{[%clk 0:00:04.6]} 60. d5+ {[%clk 0:00:22]} 60... Kd7 {[%clk 0:00:05]} 61. Rb7+
{[%clk 0:00:22.5]} 61... Ke8 {[%clk 0:00:05.6]} 62. Kf5 {[%clk 0:00:22.5]} 62...
Ra8 {[%clk 0:00:04.3]} 63. e6 {[%clk 0:00:22.7]} 63... fxe6+ {[%clk 0:00:03.6]}
64. dxe6 {[%clk 0:00:22.4]} 64... Kf8 {[%clk 0:00:02.6]} 65. Kg6 {[%clk
0:00:22.4]} 65... Kg8 {[%clk 0:00:02.5]} 66. Rg7+ {[%clk 0:00:21.9]} 66... Kh8
{[%clk 0:00:02.1]} 67. f7 {[%clk 0:00:21.6]} 1-0

[Event "Early-Titled-Tuesday-Blitz-February-13-2024"]
[Site "Chess.com"]
[Date "2024.02.13"]
[Round "1"]
[White "wqws"]
[Black "gpsji27"]
[Result "1/2-1/2"]
[WhiteElo "2635"]
[BlackElo "2306"]
[TimeControl "180+1"]
[EndTime "8:08:42 PST"]
[Termination "Game drawn by repetition"]

1. e4 {[%clk 0:03:00.9]} 1... e5 {[%clk 0:02:59.3]} 2. Nf3 {[%clk 0:02:55.7]}
2... Nc6 {[%clk 0:02:56.2]} 3. Bb5 {[%clk 0:02:51.4]} 3... a6 {[%clk 0:02:50.9]}
4. Ba4 {[%clk 0:02:51.4]} 4... Nf6 {[%clk 0:02:50.7]} 5. d3 {[%clk 0:02:47.8]}
5... b5 {[%clk 0:02:50.2]} 6. Bb3 {[%clk 0:02:48]} 6... Be7 {[%clk 0:02:48.2]}
7. O-O {[%clk 0:02:48]} 7... O-O {[%clk 0:02:47.6]} 8. Bd2 {[%clk 0:02:47.1]}
8... d6 {[%clk 0:02:47.9]} 9. Re1 {[%clk 0:02:46.1]} 9... Bg4 {[%clk 0:02:46.1]}
10. c3 {[%clk 0:02:45.5]} 10... d5 {[%clk 0:02:45.1]} 11. h3 {[%clk 0:02:41.6]}
11... Bxf3 {[%clk 0:02:28.6]} 12. Qxf3 {[%clk 0:02:41]} 12... dxe4 {[%clk
0:02:29.5]} 13. dxe4 {[%clk 0:02:40.8]} 13... Na5 {[%clk 0:02:30.1]} 14. Bc2
{[%clk 0:02:40.4]} 14... Nc4 {[%clk 0:02:30.4]} 15. Bc1 {[%clk 0:02:35.6]} 15...
c6 {[%clk 0:02:25.4]} 16. Qg3 {[%clk 0:02:33.7]} 16... Kh8 {[%clk 0:01:56.9]}
17. b3 {[%clk 0:02:31.8]} 17... Nd6 {[%clk 0:01:55.3]} 18. Qxe5 {[%clk
0:02:30.6]} 18... Re8 {[%clk 0:01:56]} 19. Qg3 {[%clk 0:02:25.8]} 19... Ndxe4
{[%clk 0:01:47.3]} 20. Qf3 {[%clk 0:02:15.1]} 20... Bc5 {[%clk 0:01:32.8]} 21.
Be3 {[%clk 0:01:48.3]} 21... Bxe3 {[%clk 0:01:26.8]} 22. Rxe3 {[%clk 0:01:46.7]}
22... Qd5 {[%clk 0:01:16.3]} 23. Na3 {[%clk 0:01:28.2]} 23... Ng5 {[%clk
0:00:48.4]} 24. Qxd5 {[%clk 0:01:18.3]} 24... Nxd5 {[%clk 0:00:49.3]} 25. Rg3
{[%clk 0:01:15.6]} 25... h6 {[%clk 0:00:48.1]} 26. Bd3 {[%clk 0:01:11.7]} 26...
Ne4 {[%clk 0:00:44.6]} 27. Bxe4 {[%clk 0:01:10.2]} 27... Rxe4 {[%clk 0:00:45.5]}
28. Nc2 {[%clk 0:01:10.4]} 28... Nf4 {[%clk 0:00:39.9]} 29. Kh2 {[%clk
0:01:09.1]} 29... Re2 {[%clk 0:00:32.5]} 30. Nd4 {[%clk 0:00:56.7]} 30... Rxf2
{[%clk 0:00:32.8]} 31. Nxc6 {[%clk 0:00:56.5]} 31... Re8 {[%clk 0:00:30.1]} 32.
Nd4 {[%clk 0:00:51.5]} 32... Ne2 {[%clk 0:00:27.9]} 33. Nxe2 {[%clk 0:00:51.5]}
33... Rexe2 {[%clk 0:00:28.8]} 34. a4 {[%clk 0:00:52.1]} 34... Rb2 {[%clk
0:00:26.2]} 35. axb5 {[%clk 0:00:51.5]} 35... axb5 {[%clk 0:00:27.1]} 36. b4
{[%clk 0:00:49.8]} 36... Kh7 {[%clk 0:00:20.9]} 37. Ra7 {[%clk 0:00:44]} 37...
Rbd2 {[%clk 0:00:19.3]} 38. Rc7 {[%clk 0:00:40.7]} 38... h5 {[%clk 0:00:16.5]}
39. Rc5 {[%clk 0:00:40.1]} 39... g6 {[%clk 0:00:16.2]} 40. h4 {[%clk 0:00:21.8]}
40... Rf4 {[%clk 0:00:15.1]} 41. Kh3 {[%clk 0:00:17.8]} 41... Rd1 {[%clk
0:00:15.5]} 42. Rf3 {[%clk 0:00:18.1]} 42... Rxf3+ {[%clk 0:00:15.2]} 43. gxf3
{[%clk 0:00:18.3]} 43... Rd3 {[%clk 0:00:14.9]} 44. Kg3 {[%clk 0:00:18.4]} 44...
Kg7 {[%clk 0:00:15.2]} 45. Kf4 {[%clk 0:00:18.6]} 45... Kf6 {[%clk 0:00:12.7]}
46. Ke4 {[%clk 0:00:19.1]} 46... Rd1 {[%clk 0:00:12.2]} 47. Rxb5 {[%clk
0:00:19.3]} 47... Rh1 {[%clk 0:00:12.3]} 48. Rb6+ {[%clk 0:00:19.6]} 48... Kg7
{[%clk 0:00:12.3]} 49. b5 {[%clk 0:00:20]} 49... Rxh4+ {[%clk 0:00:13]} 50. Kd5
{[%clk 0:00:19.7]} 50... Rf4 {[%clk 0:00:11.7]} 51. Rc6 {[%clk 0:00:18.4]} 51...
h4 {[%clk 0:00:12.2]} 52. b6 {[%clk 0:00:17.8]} 52... h3 {[%clk 0:00:12.7]} 53.
b7 {[%clk 0:00:18.1]} 53... h2 {[%clk 0:00:10.6]} 54. b8=Q {[%clk 0:00:18.3]}
54... Rf5+ {[%clk 0:00:11.1]} 55. Kd6 {[%clk 0:00:13.1]} 55... h1=Q {[%clk
0:00:11.2]} 56. Kd7 {[%clk 0:00:13.5]} 56... Qd1+ {[%clk 0:00:10.5]} 57. Rd6
{[%clk 0:00:12.4]} 57... Qa4+ {[%clk 0:00:10.7]} 58. Kd8 {[%clk 0:00:11.8]}
58... Qa5+ {[%clk 0:00:09.8]} 59. Kd7 {[%clk 0:00:11.7]} 59... Qa4+ {[%clk
0:00:09.9]} 60. Kd8 {[%clk 0:00:12]} 60... Qa5+ {[%clk 0:00:10.5]} 61. Kd7
{[%clk 0:00:12.3]} 61... Qa4+ {[%clk 0:00:11.1]} 1/2-1/2

[Event "Early-Titled-Tuesday-Blitz-February-13-2024"]
[Site "Chess.com"]
[Date "2024.02.13"]
[Round "1"]
[White "Qingdom"]
[Black "GasconJR"]
[Result "1-0"]
[WhiteElo "2164"]
[BlackElo "2559"]
[TimeControl "180+1"]
[EndTime "8:08:42 PST"]
[Termination "Qingdom won on time"]

1. d4 {[%clk 0:03:00.9]} 1... Nf6 {[%clk 0:02:59.1]} 2. Bg5 {[%clk 0:03:00.2]}
2... d5 {[%clk 0:02:58.4]} 3. e3 {[%clk 0:02:59.7]} 3... e6 {[%clk 0:02:54.9]}
4. Bd3 {[%clk 0:02:58.8]} 4... c5 {[%clk 0:02:54.2]} 5. c3 {[%clk 0:02:58.4]}
5... Nbd7 {[%clk 0:02:50.7]} 6. Nd2 {[%clk 0:02:57.6]} 6... Bd6 {[%clk
0:02:51.2]} 7. Ngf3 {[%clk 0:02:51.3]} 7... Qc7 {[%clk 0:02:39.8]} 8. Qe2 {[%clk
0:02:47.8]} 8... b6 {[%clk 0:02:37.6]} 9. Bh4 {[%clk 0:02:46.2]} 9... Bb7 {[%clk
0:02:37.2]} 10. Bg3 {[%clk 0:02:46.2]} 10... Ne4 {[%clk 0:02:32.3]} 11. Bxd6
{[%clk 0:02:45.5]} 11... Qxd6 {[%clk 0:02:31.6]} 12. O-O {[%clk 0:02:40.3]}
12... O-O {[%clk 0:02:29.5]} 13. Rfd1 {[%clk 0:02:31.2]} 13... Qc7 {[%clk
0:02:22.8]} 14. Rac1 {[%clk 0:02:30.2]} 14... Nxd2 {[%clk 0:02:16]} 15. Qxd2
{[%clk 0:02:27.2]} 15... e5 {[%clk 0:01:57.2]} 16. dxe5 {[%clk 0:02:26.7]} 16...
Nxe5 {[%clk 0:01:56.9]} 17. Nxe5 {[%clk 0:02:26.7]} 17... Qxe5 {[%clk
0:01:57.8]} 18. Be2 {[%clk 0:02:19.1]} 18... Rad8 {[%clk 0:01:53.3]} 19. Bf3
{[%clk 0:02:18.9]} 19... Qe7 {[%clk 0:01:46.6]} 20. Qc2 {[%clk 0:02:13.6]} 20...
Rd6 {[%clk 0:01:37.6]} 21. Qa4 {[%clk 0:02:12.8]} 21... a6 {[%clk 0:01:24.2]}
22. b4 {[%clk 0:02:02.5]} 22... Qc7 {[%clk 0:00:57.5]} 23. bxc5 {[%clk
0:02:01.5]} 23... bxc5 {[%clk 0:00:57.1]} 24. c4 {[%clk 0:01:57.8]} 24... d4
{[%clk 0:00:56.3]} 25. Bxb7 {[%clk 0:01:56.2]} 25... Qxb7 {[%clk 0:00:57.2]} 26.
exd4 {[%clk 0:01:54.9]} 26... Rxd4 {[%clk 0:00:54.2]} 27. Rxd4 {[%clk
0:01:53.4]} 27... cxd4 {[%clk 0:00:55.1]} 28. c5 {[%clk 0:01:53.2]} 28... Qd5
{[%clk 0:00:40.7]} 29. c6 {[%clk 0:01:49.3]} 29... d3 {[%clk 0:00:32.7]} 30. c7
{[%clk 0:01:49.1]} 30... d2 {[%clk 0:00:30.4]} 31. Rd1 {[%clk 0:01:48.4]} 31...
Rc8 {[%clk 0:00:28.3]} 32. h3 {[%clk 0:01:38.7]} 32... g6 {[%clk 0:00:22.9]} 33.
Qc2 {[%clk 0:01:24.1]} 33... Qe5 {[%clk 0:00:17.4]} 34. Qxd2 {[%clk 0:01:14.4]}
34... Rxc7 {[%clk 0:00:17.6]} 35. Qd8+ {[%clk 0:01:13.3]} 35... Kg7 {[%clk
0:00:17.7]} 36. Qd4 {[%clk 0:01:13.1]} 36... Qxd4 {[%clk 0:00:16.2]} 37. Rxd4
{[%clk 0:01:13.2]} 37... Rc1+ {[%clk 0:00:12]} 38. Kh2 {[%clk 0:01:13.3]} 38...
Rc2 {[%clk 0:00:12.5]} 39. Ra4 {[%clk 0:01:13.3]} 39... Rxf2 {[%clk 0:00:13.2]}
40. Rxa6 {[%clk 0:01:13.3]} 40... h5 {[%clk 0:00:12.4]} 41. Kg3 {[%clk
0:01:13.1]} 41... Rb2 {[%clk 0:00:12.5]} 42. Kf3 {[%clk 0:01:11.3]} 42... f6
{[%clk 0:00:09.6]} 43. h4 {[%clk 0:01:09.9]} 43... g5 {[%clk 0:00:08.1]} 44.
hxg5 {[%clk 0:01:09.1]} 44... fxg5 {[%clk 0:00:09]} 45. g3 {[%clk 0:01:06.8]}
45... Rb1 {[%clk 0:00:05.9]} 46. Ke4 {[%clk 0:01:06]} 46... Rf1 {[%clk
0:00:05.7]} 47. Rb6 {[%clk 0:01:02]} 47... g4 {[%clk 0:00:05.3]} 48. Rb3 {[%clk
0:00:57.2]} 48... Kg6 {[%clk 0:00:04.7]} 49. Kd4 {[%clk 0:00:50.5]} 49... Ra1
{[%clk 0:00:04]} 50. a3 {[%clk 0:00:50]} 50... Rd1+ {[%clk 0:00:03.8]} 51. Kc4
{[%clk 0:00:42.2]} 51... Rc1+ {[%clk 0:00:04.4]} 52. Kb4 {[%clk 0:00:41.5]}
52... Ra1 {[%clk 0:00:05]} 53. a4 {[%clk 0:00:41.7]} 53... Kg5 {[%clk
0:00:05.7]} 54. a5 {[%clk 0:00:41.2]} 54... h4 {[%clk 0:00:06.6]} 55. gxh4+
{[%clk 0:00:40.7]} 55... Kxh4 {[%clk 0:00:07.5]} 56. Kb5 {[%clk 0:00:40.1]}
56... g3 {[%clk 0:00:07.6]} 57. Rxg3 {[%clk 0:00:40.1]} 57... Kxg3 {[%clk
0:00:07.7]} 58. a6 {[%clk 0:00:40.3]} 58... Kf4 {[%clk 0:00:08.4]} 59. Kb6
{[%clk 0:00:40.8]} 59... Ke5 {[%clk 0:00:08.8]} 60. a7 {[%clk 0:00:41.4]} 60...
Kd6 {[%clk 0:00:09.2]} 61. Kb7 {[%clk 0:00:42]} 61... Rb1+ {[%clk 0:00:09.6]}
62. Kc8 {[%clk 0:00:42.2]} 62... Ra1 {[%clk 0:00:05.3]} 63. Kb7 {[%clk
0:00:41.7]} 63... Kd7 {[%clk 0:00:03.6]} 64. a8=Q {[%clk 0:00:41]} 64... Rb1+
{[%clk 0:00:04]} 65. Ka7 {[%clk 0:00:41.3]} 65... Kc7 {[%clk 0:00:03.7]} 66. Qh8
{[%clk 0:00:38.6]} 66... Rb7+ {[%clk 0:00:03.6]} 67. Ka6 {[%clk 0:00:38.2]}
67... Rb6+ {[%clk 0:00:04.2]} 68. Ka5 {[%clk 0:00:37.9]} 68... Rb7 {[%clk
0:00:03.4]} 69. Qe5+ {[%clk 0:00:37.4]} 69... Kc6 {[%clk 0:00:03]} 70. Qe4+
{[%clk 0:00:37.1]} 70... Kc7 {[%clk 0:00:03.5]} 71. Qd5 {[%clk 0:00:36.8]} 71...
Ra7+ {[%clk 0:00:02.7]} 72. Kb4 {[%clk 0:00:36]} 72... Rb7+ {[%clk 0:00:03]} 73.
Kc5 {[%clk 0:00:35.6]} 73... Kc8 {[%clk 0:00:03]} 74. Qe6+ {[%clk 0:00:32.4]}
74... Kb8 {[%clk 0:00:02.6]} 75. Kc6 {[%clk 0:00:30.3]} 75... Ka7 {[%clk
0:00:02.5]} 76. Qa2+ {[%clk 0:00:29.5]} 76... Kb8 {[%clk 0:00:02.8]} 77. Qa6
{[%clk 0:00:27]} 77... Rc7+ {[%clk 0:00:01.6]} 78. Kd6 {[%clk 0:00:26.8]} 78...
Rb7 {[%clk 0:00:01.5]} 79. Qc6 {[%clk 0:00:26.2]} 1-0

[Event "Early-Titled-Tuesday-Blitz-February-13-2024"]
[Site "Chess.com"]
[Date "2024.02.13"]
[Round "1"]
[White "crazy_m_attack"]
[Black "Szparu"]
[Result "1/2-1/2"]
[WhiteElo "2452"]
[BlackElo "2798"]
[TimeControl "180+1"]
[EndTime "8:08:45 PST"]
[Termination "Game drawn - insufficient material"]

1. e4 {[%clk 0:03:00.9]} 1... e6 {[%clk 0:02:58.8]} 2. d4 {[%clk 0:03:00.8]}
2... d5 {[%clk 0:02:58.7]} 3. Nc3 {[%clk 0:03:00.7]} 3... Nf6 {[%clk 0:02:58.4]}
4. e5 {[%clk 0:03:01]} 4... Nfd7 {[%clk 0:02:58.6]} 5. Nce2 {[%clk 0:03:01.9]}
5... c5 {[%clk 0:02:58.9]} 6. c3 {[%clk 0:03:02.8]} 6... Nc6 {[%clk 0:02:59.3]}
7. Nf3 {[%clk 0:03:03.5]} 7... Be7 {[%clk 0:02:59.4]} 8. a3 {[%clk 0:03:02.6]}
8... O-O {[%clk 0:02:56.3]} 9. b4 {[%clk 0:02:59.9]} 9... b6 {[%clk 0:02:35.5]}
10. Nf4 {[%clk 0:02:53.6]} 10... Re8 {[%clk 0:02:01.4]} 11. Bd3 {[%clk
0:02:46.5]} 11... Nf8 {[%clk 0:02:00.5]} 12. O-O {[%clk 0:02:35.3]} 12... f5
{[%clk 0:01:58.6]} 13. exf6 {[%clk 0:02:29.1]} 13... Bxf6 {[%clk 0:01:58.6]} 14.
b5 {[%clk 0:02:29.5]} 14... Na5 {[%clk 0:01:40]} 15. Re1 {[%clk 0:02:25.9]}
15... a6 {[%clk 0:01:35.7]} 16. a4 {[%clk 0:02:22.7]} 16... axb5 {[%clk
0:01:35.3]} 17. axb5 {[%clk 0:02:23.6]} 17... Bd7 {[%clk 0:01:31.3]} 18. Nh5
{[%clk 0:02:13.9]} 18... c4 {[%clk 0:01:17.9]} 19. Bc2 {[%clk 0:02:12.9]} 19...
Bxb5 {[%clk 0:01:15.8]} 20. Nxf6+ {[%clk 0:02:12.1]} 20... Qxf6 {[%clk
0:01:15.9]} 21. Bg5 {[%clk 0:02:11.1]} 21... Qf7 {[%clk 0:01:11.5]} 22. Ne5
{[%clk 0:02:09.5]} 22... Qb7 {[%clk 0:01:07.6]} 23. Qh5 {[%clk 0:02:05.9]} 23...
Nc6 {[%clk 0:01:02.8]} 24. Rxa8 {[%clk 0:01:46.4]} 24... Rxa8 {[%clk 0:01:03.7]}
25. Ng4 {[%clk 0:01:43.4]} 25... Qf7 {[%clk 0:00:55.4]} 26. Qh3 {[%clk
0:01:30.3]} 26... Ng6 {[%clk 0:00:44.7]} 27. Qe3 {[%clk 0:01:20.6]} 27... Ra2
{[%clk 0:00:35]} 28. Bb1 {[%clk 0:01:19.8]} 28... Ra1 {[%clk 0:00:33.8]} 29. h4
{[%clk 0:01:14.3]} 29... h5 {[%clk 0:00:31.9]} 30. Nh2 {[%clk 0:01:11.1]} 30...
e5 {[%clk 0:00:29.6]} 31. dxe5 {[%clk 0:01:07.8]} 31... Ncxe5 {[%clk 0:00:29.2]}
32. Qxb6 {[%clk 0:01:00.7]} 32... Nd3 {[%clk 0:00:24.4]} 33. Rf1 {[%clk
0:00:43.9]} 33... Rxb1 {[%clk 0:00:19.2]} 34. Rxb1 {[%clk 0:00:42.7]} 34... Bd7
{[%clk 0:00:14.2]} 35. Nf3 {[%clk 0:00:38.3]} 35... Bg4 {[%clk 0:00:12.7]} 36.
Qe3 {[%clk 0:00:36.6]} 36... Bxf3 {[%clk 0:00:05.8]} 37. Qxf3 {[%clk 0:00:37.5]}
37... Qxf3 {[%clk 0:00:05.1]} 38. gxf3 {[%clk 0:00:38.4]} 38... Nge5 {[%clk
0:00:05.6]} 39. Kg2 {[%clk 0:00:37.5]} 39... Kf7 {[%clk 0:00:06.2]} 40. Be3
{[%clk 0:00:32.1]} 40... Ke6 {[%clk 0:00:05.4]} 41. Bd4 {[%clk 0:00:31.5]} 41...
Nf4+ {[%clk 0:00:05.5]} 42. Kh1 {[%clk 0:00:18.6]} 42... Neg6 {[%clk 0:00:04.6]}
43. Bxg7 {[%clk 0:00:17.7]} 43... Nxh4 {[%clk 0:00:04.5]} 44. Rb6+ {[%clk
0:00:15.7]} 44... Kf5 {[%clk 0:00:05]} 45. Rf6+ {[%clk 0:00:15.5]} 45... Kg5
{[%clk 0:00:05.5]} 46. Rf8 {[%clk 0:00:08.5]} 46... Nxf3 {[%clk 0:00:02.6]} 47.
Bh6+ {[%clk 0:00:08.8]} 47... Kxh6 {[%clk 0:00:03]} 48. Rxf4 {[%clk 0:00:09.4]}
48... Nd2 {[%clk 0:00:02.4]} 49. Rd4 {[%clk 0:00:07.6]} 49... Ne4 {[%clk
0:00:02]} 50. Rxd5 {[%clk 0:00:08]} 50... Nxf2+ {[%clk 0:00:02.5]} 51. Kg2
{[%clk 0:00:07.4]} 51... Ne4 {[%clk 0:00:03]} 52. Rd4 {[%clk 0:00:05.3]} 52...
Nxc3 {[%clk 0:00:03.5]} 53. Rxc4 {[%clk 0:00:06]} 53... Nd5 {[%clk 0:00:03.8]}
54. Kh3 {[%clk 0:00:05.3]} 54... Nf6 {[%clk 0:00:02.3]} 55. Kh4 {[%clk
0:00:04.8]} 55... Kg6 {[%clk 0:00:02.4]} 56. Rc6 {[%clk 0:00:04.9]} 56... Kf5
{[%clk 0:00:02.5]} 57. Rc5+ {[%clk 0:00:05.5]} 57... Kg6 {[%clk 0:00:03]} 58.
Rg5+ {[%clk 0:00:05.7]} 58... Kf7 {[%clk 0:00:02.9]} 59. Rg1 {[%clk 0:00:05.1]}
59... Ke6 {[%clk 0:00:02.3]} 60. Kg5 {[%clk 0:00:05.5]} 60... Ne4+ {[%clk
0:00:02.3]} 61. Kxh5 {[%clk 0:00:05]} 61... Kf5 {[%clk 0:00:02.9]} 62. Rf1+
{[%clk 0:00:04.7]} 62... Ke5 {[%clk 0:00:03.6]} 63. Rf8 {[%clk 0:00:03.8]} 63...
Nf6+ {[%clk 0:00:03.8]} 64. Kg6 {[%clk 0:00:03.6]} 64... Ne4 {[%clk 0:00:04.3]}
65. Re8+ {[%clk 0:00:03.9]} 65... Kd4 {[%clk 0:00:04.9]} 66. Kf5 {[%clk
0:00:04.2]} 66... Nd6+ {[%clk 0:00:04.9]} 67. Ke6 {[%clk 0:00:04.7]} 67... Nxe8
{[%clk 0:00:05.8]} 1/2-1/2